Cogmind - Beta 15 @@@ ROGUE MODE // 2025.06.28 @ 13:59:01 Player: Minty Result: Destroyed by Enhanced Grunt with Neutron Cannon Performance ------------- Evolutions (3) 1500 Regions Visited (7) 1400 Robots Destroyed (90) 450 Value Destroyed (2852) 2852 Prototype IDs (216) 4320 Alien Tech Used (0) 0 Bonus (3496) 3496 TOTAL SCORE: 14018 Bonus ------- High Alert Combat Kills 196 Met Data Miner 300 Used Data Conduit 3000 Cogmind --------- Core Integrity 0/700 Matter 222/300 Energy 100/100 System Corruption 0% Temperature Cool (0) Movement Core (300) Ox5 Location -7/Data Miner Parts ------- > --- POWER (1) -------- (None) > --- PROPULSION (3) --- (None) > --- UTILITY (4) ------ Medium Storage Unit > --- WEAPON (5) ------- High-powered Shotgun Heavy Battle Rifle > --- INVENTORY (10) --- Micro Nuclear Core High-capacity Matter Pod (200) Graphene Brace Improved Shield Generator Improved Trap Extractor (0/6) Chainsword Peak State ------------ > --- POWER ------------ Improved Deuterium Engine > --- PROPULSION ------- Carbon-fiber Leg Carbon-fiber Leg Carbon-fiber Leg > --- UTILITY ---------- Advanced Heat Sink Small Storage Unit Improved Medium Armor Plating Insulated Plating > --- WEAPON ----------- Heavy Particle Gun Heavy Particle Gun Gauss Rifle Flak Gun Power Maul > --- INVENTORY -------- Micro Nuclear Core Large Matter Pod Hardened Heavy Armor Plating Medium Reactive Plating Graphene Brace Heavy Assault Cannon [Rating: 49] Favorites ----------- Power Improved Deuterium Engine Engine Improved Deuterium Engine Power Core Micro Nuclear Core Propulsion Advanced Treads Treads Advanced Treads Leg Aluminum Leg Utility Medium Storage Unit Device Improved Shield Generator Storage Medium Storage Unit Processor Machine Analyzer Hackware Hacking Suite Protection Layered Light Armor Plating Weapon High-powered Shotgun Energy Gun Heavy Particle Gun Energy Cannon Advanced Beam Cannon Ballistic Gun High-powered Shotgun Ballistic Cannon Heavy Assault Cannon Launcher Mini Grenade Launcher Impact Weapon Power Maul Slashing Weapon Chainsword Build | -11 -10 -9 -8 -7 -7 -7 -7 ------- Run | Yrd Mat Mat Mat Fac Low Low Dat Slots Evolved 6 | . . 2 2 2 . . . Power . | . . . . . . . . Propulsion 1 | . . . . 1 . . . Utility 2 | . . 1 . 1 . . . Weapon 3 | . . 1 2 . . . . Parts Attached 89 | . 5 13 31 32 7 . 1 Power 5 | . . . 3 2 . . . Engine 4 | . . . 3 1 . . . Core 1 | . . . . 1 . . . Reactor . | . . . . . . . . Propulsion 21 | . 2 4 4 11 . . . Treads 10 | . . 2 4 4 . . . Leg 11 | . 2 2 . 7 . . . Wheel . | . . . . . . . . Hover . | . . . . . . . . Flight . | . . . . . . . . Utility 27 | . 1 4 9 9 3 . 1 Device 9 | . . 1 6 1 1 . . Storage 1 | . . . . 1 . . . Processor 2 | . . 1 . . 1 . . Hackware 1 | . . . . 1 . . . Protection 14 | . 1 2 3 6 1 . 1 Artifact . | . . . . . . . . Weapon 36 | . 2 5 15 10 4 . . Energy Gun 10 | . 1 2 6 1 . . . Energy Cannon 1 | . . 1 . . . . . Ballistic Gun 17 | . 1 1 7 5 3 . . Ballistic Cannon 1 | . . . 1 . . . . Launcher 3 | . . . 1 1 1 . . Special Weapon . | . . . . . . . . Impact Weapon 3 | . . 1 . 2 . . . Slashing Weapon 1 | . . . . 1 . . . Piercing Weapon . | . . . . . . . . Special Melee Weapon . | . . . . . . . . Unidentified Prototypes 5 | . . 2 2 1 . . . Corrupted Parts 4 | . . . 4 . . . . System Corruption 29 | . . . 29 . . . . Parts Lost 29 | . . . 11 4 1 . 13 Power 2 | . . . 1 . . . 1 Propulsion 5 | . . . 2 . . . 3 Utility 7 | . . . 1 2 1 . 3 Weapon 15 | . . . 7 2 . . 6 Highest Loss Streak 13 | . . . 5 2 1 . 13 To Critical Strikes . | . . . . . . . . Average Backups 7 | 6 7 7 7 6 8 9 8 Power 1 | 1 1 1 . 1 1 1 1 Propulsion . | 4 4 1 . . . . . Utility 4 | . 2 3 4 3 5 4 4 Weapon 1 | 1 . 1 2 1 2 4 3 Tool/Special . | . . . . . . . . Unused Backups 19 | . 6 1 4 5 1 . 2 Power 1 | . . . . . 1 . . Propulsion 2 | . 2 . . . . . . Utility 10 | . . 1 2 5 . . 2 Weapon 6 | . 4 . 2 . . . . Tool/Special . | . . . . . . . . Average Slot Usage (%) 92 | . 85 97 87 90 94 100 95 Engine 8 | . 14 11 8 7 7 7 7 Treads 17 | . . 18 9 15 23 23 21 Leg 4 | . 28 3 6 6 . . . Device 4 | . . 1 11 6 . 7 6 Storage 8 | . 14 11 9 6 7 7 7 Processor 1 | . . 5 . . 1 . . Protection 11 | . . 13 4 12 15 15 14 Energy Gun 6 | . 12 11 11 6 3 . . Ballistic Gun 20 | . 15 10 17 15 26 30 30 Launcher 1 | . . . 7 1 . . . Impact Weapon 3 | . . 9 1 7 . . . Slashing Weapon 3 | . . . . . 6 7 5 Peak Build Rating 49 | 6 7 18 33 49 49 46 47 Average Rating 35 | 6 6 12 21 42 46 46 43 On Entrance 25 | 6 6 6 18 29 46 46 46 Naked Turns . | . . . . . . . . Heaviest Build 64 | 12 15 29 50 64 63 51 51 Greatest Support 66 | 20 20 40 40 66 66 66 66 Greatest Overweight (x) 5 | . . 1 5 2 . . 1 Average Overweight (x) . | . . . . . . . . Largest Inventory Capacity 10 | 8 8 8 8 10 10 10 10 Average Capacity 8 | 8 8 8 8 8 10 10 10 Most Carried 10 | 6 8 8 8 10 10 10 10 Average Carried 8 | 6 7 7 7 8 9 10 9 Final Capacity 10 | 8 8 8 8 10 10 10 10 Final Carried 10 | 6 8 8 8 10 10 10 6 Class Distribution -------------------- 57% | Tank 18% | Mutant 10% | Scavenger-Tank 6% | Gunner 5% | Scavenger-Mutant Dominant Class ---------------- Mutant | -10/Materials Mutant | -9/Materials Gunner | -8/Materials Tank | -7/Factory Tank | -7/Lower Caves Tank | -7/Lower Caves Tank | -7/Data Miner Resources | -11 -10 -9 -8 -7 -7 -7 -7 ----------- Run | Yrd Mat Mat Mat Fac Low Low Dat Matter Collected 3007 | 200 115 252 583 1379 432 46 . Remotely . | . . . . . . . . Salvage Created 2843 | . 303 384 819 1094 243 . . Parts 147 | . 10 26 52 46 13 . . Haulers Intercepted 3 | . . 1 2 . . . . Recyclers Shooed . | . . . . . . . . Parts Field Recycled . | . . . . . . . . Retrieved Matter . | . . . . . . . . Parts Self-Destructed 18 | . . . . . 18 . . Prevented 1 | . . . . . 1 . . Kills | -11 -10 -9 -8 -7 -7 -7 -7 ------- Run | Yrd Mat Mat Mat Fac Low Low Dat Combat Hostiles Destroyed 66 | . 5 7 24 20 10 . . Melee 2 | . . . . 1 1 . . Guns 38 | . 5 5 6 15 7 . . Cannons 3 | . . 1 1 1 . . . AOE 20 | . . 1 17 . 2 . . Classes Destroyed 16 | . 3 8 4 1 . . . Worker 4 | . . 2 . 2 . . . Builder 4 | . . 1 2 1 . . . Tunneler 1 | . . 1 . . . . . Hauler 3 | . . 1 2 . . . . Recycler 4 | . 1 . 1 2 . . . Mechanic 3 | . . 1 2 . . . . Operator 2 | . 1 . . 1 . . . Watcher 3 | . . 2 . 1 . . . Swarmer 20 | . . 4 4 3 9 . . Grunt 27 | . 5 1 11 10 . . . Brawler 1 | . . . 1 . . . . Duelist 2 | . . . 2 . . . . Protector 2 | . . . 2 . . . . Sentry 9 | . . 2 3 3 1 . . Hunter 4 | . . . 1 3 . . . Programmer 1 | . . . . 1 . . . Decomposer 1 | . . . . . 1 . . Best Kill Streak 10 | . 4 8 10 5 3 . . Combat Bots Only 10 | . 2 5 10 4 3 . . Max Kills in Single Turn 4 | . 1 3 4 2 2 . . Gunslinging . | . . . . . . . . Exploded 4 | . . 1 4 . 2 . . Melee 1 | . . . . 1 1 . . Uniques/NPCs Destroyed . | . . . . . . . . Combat | -11 -10 -9 -8 -7 -7 -7 -7 -------- Run | Yrd Mat Mat Mat Fac Low Low Dat Hostile Shots Fired 583 | . 31 32 119 235 116 . 50 Missed 172 | . 6 4 35 83 31 . 13 Hits 411 | . 25 28 84 152 85 . 37 Melee 7 | . . . 7 . . . . Projectile 404 | . 25 28 77 152 85 . 37 Critical Strikes 17 | . . 1 6 10 . . . Actively Blocked 5 | . . . . 5 . . . Part Disruptions 3 | . . . . . . . 3 Actively Blocked 1 | . . . . . . . 1 Damage Taken 7287 | . 269 335 1865 2054 1145 . 1619 Core 1051 | . 32 11 271 202 102 . 433 Absorbed by Shields 133 | . . . . . 52 . 81 Redirected to Shielding 90 | . . . . . . . 90 Ignored by Resistances 3 | . . . . 3 . . . Core Remaining (%) 83 | 100 87 97 50 . . . . Volleys Fired 175 | . 23 19 43 57 24 . 9 Largest 5 | . 2 2 5 4 4 . 4 Hottest 218 | . 70 91 218 138 154 . 116 Shots Fired 433 | . 45 38 123 133 68 . 26 Gun 403 | . 45 36 102 127 67 . 26 Cannon 9 | . . 2 1 6 . . . Launcher 21 | . . . 20 . 1 . . Special . | . . . . . . . . Kinetic 284 | . 23 19 75 77 64 . 26 Thermal 92 | . 22 14 . 56 . . . Explosive 21 | . . . 20 . 1 . . Electromagnetic 36 | . . 5 28 . 3 . . Robot Hit Streak 12 | . 5 12 12 12 4 . 8 Robot Miss Streak 15 | . 4 4 6 7 15 . 2 Penetration Max . | . . . . . . . . Secondary Targets 6 | . . 1 1 3 1 . . Max Gunslinging Chain 1 | . . 1 1 1 1 . . Shots Hit Robots 291 | . 26 29 83 104 28 . 21 Core Hits 184 | . 10 17 64 65 17 . 11 Critical Kills 2 | . . . . 2 . . . Critical Parts Destroyed 5 | . . 3 . 1 1 . . Critical Strikes 12 | . . 4 1 5 1 . 1 Burn 2 | . . 1 . 1 . . . Destroy 3 | . . . . 1 1 . 1 Blast 2 | . . . 1 1 . . . Smash 5 | . . 3 . 2 . . . Melee Attacks 30 | . . 7 . 18 4 . 1 Impact 25 | . . 7 . 18 . . . Slashing 5 | . . . . . 4 . 1 Piercing . | . . . . . . . . Sneak Attacks 7 | . . 3 . 2 1 . 1 Combat Hostiles . | . . . . . . . . Follow-up Attacks . | . . . . . . . . Damage Inflicted 8124 | . 336 658 3254 2567 785 . 524 Guns 4481 | . 326 318 1228 1653 508 . 448 Cannons 328 | . . 20 31 277 . . . Explosions 2202 | . . 22 1994 . 186 . . Melee 1102 | . . 298 . 637 91 . 76 Ramming 11 | . 10 . 1 . . . . Kinetic 3208 | . 199 149 816 1100 496 . 448 Thermal 1240 | . 127 154 129 830 . . . Explosive 2040 | . . . 1854 . 186 . . Electromagnetic 523 | . . 57 454 . 12 . . Impact 935 | . . 298 . 637 . . . Slashing 167 | . . . . . 91 . 76 Piercing . | . . . . . . . . Highest Corruption 29 | . . . 29 . . . . Average Corruption 22 | . . . 22 . . . . Corruption Purged . | . . . . . . . . Corruption Blocked . | . . . . . . . . Effects 4 | . . . 4 . . . . Message Errors 1 | . . . 1 . . . . Heat Flow Errors 3 | . . . 3 . . . . Overload Shots . | . . . . . . . . Overflow Damage 566 | . . 206 93 198 53 . 16 Projectiles 39 | . . . . 39 . . . Explosions 93 | . . . 93 . . . . Melee 434 | . . 206 . 159 53 . 16 Knockbacks 5 | . . 1 . 4 . . . Impact 3 | . . 1 . 2 . . . Kinetic 2 | . . . . 2 . . . Secondary . | . . . . . . . . Self-Inflicted Damage 381 | . . 30 351 . . . . Shots 12 | . . 1 11 . . . . Rammed . | . . . . . . . . Targets Rammed 2 | . 1 . 1 . . . . Kicked 2 | . 1 . 1 . . . . Crushed . | . . . . . . . . Highest Temperature 408 | . 189 160 246 214 408 . 141 Average Temperature 107 | . 70 58 83 77 189 . 75 Received Heat Transfer 1659 | . 150 87 504 888 30 . . Effects 2 | . . . . . 2 . . Shutdowns 1 | . . . . . 1 . . Energy Bleed 1 | . . . . . 1 . . Siege Activations . | . . . . . . . . Martial Activations . | . . . . . . . . Shielding Activations . | . . . . . . . . Robots Disrupted 1 | . . . 1 . . . . Combat Hostiles 1 | . . . 1 . . . . Robots Corrupted 8 | . 1 3 1 3 . . . Combat Hostiles 3 | . . . . 3 . . . Parts Fried 14 | . 1 9 . 4 . . . Impact Corruptions 13 | . 1 5 . 7 . . . Robots Melted . | . . . . . . . . Combat Hostiles . | . . . . . . . . Parts Melted 2 | . 1 1 . . . . . Heat Transferred 2679 | . 370 494 150 1665 . . . Parts Sabotaged . | . . . . . . . . Parts Stolen . | . . . . . . . . Parts Stripped . | . . . . . . . . Power Chain Reactions 4 | . . 1 3 . . . . Alert | -11 -10 -9 -8 -7 -7 -7 -7 ------- Run | Yrd Mat Mat Mat Fac Low Low Dat Maximum Alert Level 2 | . . . 2 2 . . . Low Security (%) 34 | 100 100 100 13 . . . . Level 1 49 | . . . 7 99 . . . Level 2 16 | . . . 78 . . . . Level 3 . | . . . . . . . . Level 4 . | . . . . . . . . Level 5 . | . . . . . . . . High Security . | . . . . . . . . Max Security . | . . . . . . . . Peak Influence 582 | . 96 143 582 402 . . . Initial 253 | . . 34 42 253 . . . Average 250 | . 43 39 455 295 . . . Influence Increases 2137 | . 162 270 872 558 275 . . Destroy 0b10 Robot/C 1280 | . 100 140 440 400 200 . . Destroy 0b10 Robot/NC 130 | . 10 40 45 35 . . . Destroy Leader 292 | . 20 46 94 102 30 . . Successful Hack 22 | . . 6 . 16 . . . Select Force Hacks 30 | . 30 . . . . . . Disable Machine 60 | . . 15 45 . . . . Anti-Garrison Action 150 | . . . 150 . . . . Destroy Structure 113 | . 2 8 98 5 . . . Lose Combat Pursuer 60 | . . 15 . . 45 . . Influence Decreases 2137 | . 80 249 417 815 507 69 . Entered New Map 540 | . . 48 61 305 112 14 . Time Decay 1447 | . 80 201 246 470 395 55 . Lost Part 150 | . . . 110 40 . . . Squads Dispatched 18 | . 2 2 5 9 . . . Investigation 5 | . 1 1 . 3 . . . Extermination 2 | . . . . 2 . . . Reinforcement 5 | . 1 1 2 1 . . . Assault 2 | . . . 2 . . . . Garrison 4 | . . . 1 3 . . . Intercept . | . . . . . . . . Searches Triggered . | . . . . . . . . Construction Impeded 1 | . . . 1 . . . . Haulers Reinforced . | . . . . . . . . Active Scanning Responses . | . . . . . . . . Cargo Convoy Interrupts . | . . . . . . . . Stealth | -11 -10 -9 -8 -7 -7 -7 -7 --------- Run | Yrd Mat Mat Mat Fac Low Low Dat Distress Signals 3 | . 1 1 . 1 . . . Communications Jammed . | . . . . . . . . Distress Signals . | . . . . . . . . Times Spotted 87 | . 7 10 28 25 13 . 4 Peak Tracking Total 10 | . 4 3 10 4 4 . 4 Tactical Retreats 3 | . . 1 . . 2 . . Traps | -11 -10 -9 -8 -7 -7 -7 -7 ------- Run | Yrd Mat Mat Mat Fac Low Low Dat Traps Triggered 1 | . . 1 . . . . . Indirectly . | . . . . . . . . Trap Hack Attempts . | . . . . . . . . Triggered . | . . . . . . . . Disarmed . | . . . . . . . . Reprogrammed . | . . . . . . . . Reused . | . . . . . . . . Traps Extracted . | . . . . . . . . Installed . | . . . . . . . . Triggered . | . . . . . . . . Machines | -11 -10 -9 -8 -7 -7 -7 -7 ---------- Run | Yrd Mat Mat Mat Fac Low Low Dat Machines Disabled 5 | . . 1 4 . . . . Max in Single Turn 2 | . . 1 2 . . . . Garrison Access 1 | . . . 1 . . . . Machines Repaired . | . . . . . . . . Machines Dismantled . | . . . . . . . . Machines Sabotaged . | . . . . . . . . Overloaded Fab Kills . | . . . . . . . . Hacking | -11 -10 -9 -8 -7 -7 -7 -7 --------- Run | Yrd Mat Mat Mat Fac Low Low Dat Machines Accessed 12 | . 2 2 . 3 1 . 4 Terminals 5 | . 1 2 . 2 . . . Fabricators 1 | . . . . 1 . . . Repair Stations . | . . . . . . . . Recycling Units 1 | . 1 . . . . . . Scanalyzers . | . . . . . . . . Garrison Access . | . . . . . . . . Total Hacks 49 | . 5 6 . 6 1 . 31 Successful 38 | . 3 2 . 1 1 . 31 Failed 11 | . 2 4 . 5 . . . Catastrophic 7 | . . 2 . 5 . . . Database Lockouts . | . . . . . . . . Manual 6 | . 1 5 . . . . . Terminals 13 | . 3 6 . 4 . . . Fabricators 2 | . . . . 2 . . . Repair Stations . | . . . . . . . . Recycling Units 2 | . 2 . . . . . . Scanalyzers . | . . . . . . . . Garrison Access . | . . . . . . . . Terminal Hacks 35 | . 1 1 . 1 1 . 31 Record 12 | . . 1 . . . . 11 Part Schematic 13 | . . . . . . . 13 Robot Schematic 4 | . . . . . . . 4 Prototype ID Bank 3 | . . . . . . . 3 Open Door 1 | . . . . . 1 . . Branch Access Points 1 | . . . . 1 . . . Security Status 1 | . 1 . . . . . . Fabricator Hacks . | . . . . . . . . Repair Station Hacks . | . . . . . . . . Recycling Unit Hacks 1 | . 1 . . . . . . Report Inventory 1 | . 1 . . . . . . Scanalyzer . | . . . . . . . . Garrison Access Hacks . | . . . . . . . . Unauthorized Hacks 2 | . 1 1 . . . . . Terminals 1 | . . 1 . . . . . Botnet 1 | . . 1 . . . . . Fabricators . | . . . . . . . . Repair Stations . | . . . . . . . . Recycling Units 1 | . 1 . . . . . . Tunnel 1 | . 1 . . . . . . Scanalyzers . | . . . . . . . . Garrison Access . | . . . . . . . . Data Cores Recovered . | . . . . . . . . Used . | . . . . . . . . Hacking Detections 6 | . 1 2 . 3 . . . Full Trace Events 6 | . 1 2 . 3 . . . Feedback Events . | . . . . . . . . Feedback Blocked . | . . . . . . . . Robot Schematics Acquired 4 | . . . . . . . 4 Robots Built . | . . . . . . . . Authchips . | . . . . . . . . Time . | . . . . . . . . Total Robot Build Rating . | . . . . . . . . Part Schematics Acquired 13 | . . . . . . . 13 Parts Built . | . . . . . . . . Authchips . | . . . . . . . . Time . | . . . . . . . . Total Part Build Rating . | . . . . . . . . Parts Repaired . | . . . . . . . . Time . | . . . . . . . . Parts Recycled . | . . . . . . . . Recycled Matter . | . . . . . . . . Retrieved Matter . | . . . . . . . . Retrieved Components . | . . . . . . . . Parts Scanalyzed . | . . . . . . . . Part Schematics Acquired . | . . . . . . . . Parts Damaged . | . . . . . . . . Bothacking | -11 -10 -9 -8 -7 -7 -7 -7 ------------ Run | Yrd Mat Mat Mat Fac Low Low Dat Used RIF Installer . | . . . . . . . . Robots Hacked . | . . . . . . . . Non-combat . | . . . . . . . . Combat . | . . . . . . . . Robot Hacks Applied . | . . . . . . . . Relay Couplers Released 3 | . . . 3 . . . . Machine Destruction 3 | . . . 3 . . . . Fabnet Peak Effective % . | . . . . . . . . Robots Rewired . | . . . . . . . . Allies Hacked . | . . . . . . . . Hacks Repelled . | . . . . . . . . Allies | -11 -10 -9 -8 -7 -7 -7 -7 -------- Run | Yrd Mat Mat Mat Fac Low Low Dat Total Allies . | . . . . . . . . Largest Group . | . . . . . . . . Highest-Rated Group . | . . . . . . . . Highest-Rated Ally . | . . . . . . . . Total Orders . | . . . . . . . . Ally Attacks . | . . . . . . . . Total Damage . | . . . . . . . . Kills . | . . . . . . . . Allies Corrupted . | . . . . . . . . Allies Melted . | . . . . . . . . Intel | -11 -10 -9 -8 -7 -7 -7 -7 ------- Run | Yrd Mat Mat Mat Fac Low Low Dat Active Infowar (turns) 315 | . . 260 55 . . . . Structural 55 | . . . 55 . . . . Machine Analysis 260 | . . 260 . . . . . Robot Analysis Total 151 | . . . . . . . 151 Derelict Logs Recovered 1 | . . . . . 1 . . Drone Launches . | . . . . . . . . Drone Recoveries . | . . . . . . . . Exploration | -11 -10 -9 -8 -7 -7 -7 -7 ------------- Run | Yrd Mat Mat Mat Fac Low Low Dat Turns Passed 4177 | 2 233 546 534 1187 1243 280 152 Spaces Moved 2250 | 2 128 288 196 590 775 193 78 Core 5 | . . . 5 . . . . Treads 1810 | . . 230 116 418 775 193 78 Legs 435 | 2 128 58 75 172 . . . Wheels . | . . . . . . . . Hover . | . . . . . . . . Flight . | . . . . . . . . Fastest Speed 120 | 120 120 120 120 120 145 145 145 Average Speed 145 | 120 120 154 157 142 145 145 146 Slowest Speed 330 | 120 120 190 330 260 145 145 225 Overloaded Moves . | . . . . . . . . Propulsion Burnouts . | . . . . . . . . Robots Hopped . | . . . . . . . . Potential Cave-ins . | . . . . . . . . Cave-ins Triggered . | . . . . . . . . Exploration Rate (%) 38 | 2 37 30 20 14 72 53 76 Regions Visited 7 Branch Regions 3 Pre-discovered Areas 32 | . 1 . . . . . 31 Known Exits Taken 1 | . . . . 1 . . . Unknown Exits Taken 6 | 1 1 1 1 . 1 1 . Scrap Searched 4 | . . . . . 3 1 . Spaces Dug 4 | . . 1 . 3 . . . Terrain Destroyed 129 | . . 7 111 3 8 . . Melee 4 | . . 1 . 3 . . . Projectile . | . . . . . . . . AOE 125 | . . 6 111 . 8 . . Terrain Rammed . | . . . . . . . . Walls Destroyed . | . . . . . . . . Machines Disabled . | . . . . . . . . Actions | -11 -10 -9 -8 -7 -7 -7 -7 --------- Run | Yrd Mat Mat Mat Fac Low Low Dat Total 2758 | 1 163 344 334 789 840 193 94 Wait 57 | . . . 19 24 13 1 . Move 2243 | 1 127 287 195 589 774 192 78 Hop . | . . . . . . . . Pick Up 42 | . 2 6 7 23 4 . . Fast Attach 34 | . 1 4 18 10 1 . . Attach 26 | . . 4 10 6 3 . 3 Detach 9 | . 1 1 6 1 . . . Swap 71 | . 4 8 15 31 10 . 3 Drop 69 | . 4 8 20 30 7 . . Fire 175 | . 23 19 43 57 24 . 9 Melee 30 | . . 7 . 18 4 . 1 Ram . | . . . . . . . . Kick 2 | . 1 . 1 . . . . Crush . | . . . . . . . . Escape Stasis . | . . . . . . . . Rewire . | . . . . . . . . Trap . | . . . . . . . . Miscellaneous . | . . . . . . . . Route ------- -11/Scrapyard -10/Materials -9/Materials -8/Materials -7/Factory (discovered 2 exits: *Low x2) -7/Lower Caves -7/Lower Caves -7/Data Miner (discovered 1 exit: [*Pro]) History --------- Turn | Location | Event 1 | -11/Scrapyard | Discovered new exit (range 1) 3 | -11/Scrapyard | Entered Materials 195 | -10/Materials | Discovered new exit (range 16) 236 | -10/Materials | Entered another Materials area 236 | -9/Materials | Evolved 2 slots: Utility x1, Weapon x1 335 | -9/Materials | Build established: Mutant 757 | -9/Materials | Discovered new exit (range 9) 782 | -9/Materials | Entered another Materials area 782 | -8/Materials | Evolved 2 slots: Weapon x2 945 | -8/Materials | Destroyed 10 combat bots 950 | -8/Materials | Lost 3 parts (1u2w) 1246 | -8/Materials | Lost 5 parts (1p2n2w) 1254 | -8/Materials | System corruption reached 10% 1301 | -8/Materials | Discovered new exit (range 7) 1316 | -8/Materials | Entered Factory 1316 | -7/Factory | Evolved 2 slots: Propulsion x1, Utility x1 2041 | -7/Factory | Garrison activated, responded to threat 2369 | -7/Factory | Build established: Tank 2396 | -7/Factory | Identified exit to Lower Caves 2503 | -7/Factory | Entered Lower Caves 2634 | -7/Lower Caves | Attracted the attention of an 0b10 checkpoint 2949 | -7/Lower Caves | Encountered a Warlord checkpoint 3735 | -7/Lower Caves | Discovered new exit (range 7) 3746 | -7/Lower Caves | Entered another Lower Caves area 4008 | -7/Lower Caves | Discovered new exit (range 10) 4026 | -7/Lower Caves | Entered Data Miner 4026 | -7/Data Miner | Discovered new exit (range 6) 4054 | -7/Data Miner | Met Data Miner 4087 | -7/Data Miner | Learned location of Section 7 (-3) 4087 | -7/Data Miner | Acquired the access code to Warlord's prototype stash 4108 | -7/Data Miner | Received God Mode back door access code from Data Miner 4138 | -7/Data Miner | Interfaced with the Data Conduit 4166 | -7/Data Miner | Core integrity fell below 50% 4176 | -7/Data Miner | Core integrity fell below 20% 4178 | -7/Data Miner | Destroyed by Enhanced Grunt with Neutron Cannon Last Messages --------------- 04138_ Interfacing with system... Downloaded 151 analysis records. Downloaded 773 prototype IDs. Downloaded central machine database. Downloaded 30 destinations. Downloaded encryption format records. Connection remotely terminated. 04144_ Enhanced Grunt suffers critical hit (Destroy). 04153_ Adv. Treads destroyed. 04158_ Hpw. Shotgun destroyed. 04159_ Imp. Grenade Launcher destroyed. 04164_ Hvy. Battle Rifle destroyed. 04166_ Imp. Medium Armor Plating destroyed. 04166_ Lyr. Light Armor Plating destroyed. 04168_ Imp. Propulsion Shielding destroyed. 04170_ Imp. Deuterium Engine destroyed. 04170_ Hvy. Battle Rifle destroyed. 04171_ Adv. Treads destroyed. 04172_ Hvy. Assault Cannon destroyed. 04176_ Hpw. Shotgun destroyed. Map ----- +----------------------------------------------------+ | | | | | | | | | | | | | | | | | | | | | | | | | | | | | | | ???????????????????????????????????? | | ???????????????????????????????????? | | ???????????????????????????????????? | | ???????????????????????????????????? | | ???????????????????????????????????? | | ??????###############??????????????# | | ?????"""""""""""""""######????????## | | ????""""""" """"""""########## | | ????"""""""" g | | ????""""" g | | ???"""""" @ g | | ???"""""" g | | ???""""" | | ???"""""" """""""""""" | | ????""""" """"########## | | ????"""""" """""###????????? | | ?????"""""""" "#####??????????? | | ?????#######"## "#??????????????? | | ???????????#"### "#??????????????? | | ???????????#"### "#??????????????? | | ???????????#"?# "#??????????????? | | ?????????????## "#??????????????? | | ?????????????# "#??????????????? | | ?????????????### "#??????????????? | | ???????????????# "##?????????????? | | ??????????????## ""#?????????????? | | ???????????#?## ""#?????????????? | | ?????????"##"#"X ""#?????????????? | | ?????????"""""" "####??????????? | | ?????????#""""" X"""""??????????? | | ?????????###"#"X "##"#??????????? | | ???????????#?## X""""#??????????? | | ??????????????## "##"#??????????? | | ???????????????#######?????????????? | | ???????????????????????????????????? | +----------------------------------------------------+ Best States ------------- Heat Dissipation 67 Energy Generation 16 Energy Capacity 290 Matter Stores 300 Matter Capacity 300 Sight Range 16 Terrain Scan Density 10 Armor Coverage 825 Resistance: EM 15 Propulsion Shielding 66 Utility Shielding 33 Evasion (%) 55 Targeting Accuracy 6 Recoil Reduction 3 Offensive Hacking 10 Item Schematics ----------------- Combat Drone Bay | -7/Data Miner | Free Lgt. Regenerative Plating | -7/Data Miner | Free Cld. Cesium-ion Thruster | -7/Data Miner | Free Gravity Neutralizer | -7/Data Miner | Free Imp. Lightning Gun | -7/Data Miner | Free Arm. Medium Treads | -7/Data Miner | Free Imp. Coolant Injector | -7/Data Miner | Free Enh. Gauss Cannon | -7/Data Miner | Free Hvy. Flak Cannon | -7/Data Miner | Free Imp. Plasma Cutter | -7/Data Miner | Free Lance | -7/Data Miner | Free Hardcell Cannon | -7/Data Miner | Free Lrn. Terrain Scanner | -7/Data Miner | Free Robot Schematics ------------------ B-48 Gladiator | -7/Data Miner | Free M-14 Sweeper | -7/Data Miner | Free X-62 Marksman | -7/Data Miner | Free M-22 Extractor | -7/Data Miner | Free Fabricated ------------ Nothing Repaired ---------- Nothing Alien Tech Used ----------------- None Achievements -------------- None Challenges ------------ None Game ------ Seed StrikeWarpClaw Manual? 0 Play Time 00:25:04 Cumulative 1131.7 hours Start 2025.06.28 @ 13:35:42 End 2025.06.28 @ 13:59:01 Sessions 1 Manual Loads 0 Difficulty Rogue Special Mode None Game No. 1391 Rogue 1107 Adventurer 124 Explorer 160 Win Type - Total 50 Types 36/0/8/4/1/0/0/1/0/0 Lore% 92 Gallery% 88 Achievement% 81 Wizard Run 0 Options --------- Layout 0 ASCII 0 Keyboard 1 Movement Numpad Keybinds 0 Fullscreen 2 Font 18/X11 Map View 76x50 Zoom Use 0% Tactical HUD 1 Map Filters NONE Filters NONE Steam 1 RUN: 7a48d6c8-a640-4bf7-aabc-8ce16de63a3d